fUST/lending_fUST_20260526
["ID","MTS","AMOUNT","RATE_DAILY","PERIOD"]
[423016591,1779751841000,-500.0,8.219e-05,2]
[423016594,1779751841000,-500.0,8.219e-05,2]
[423016595,1779751841000,-500.0,8.219e-05,2]
[423016598,1779751841000,-500.0,8.219e-05,2]
[423016599,1779751841000,-1299.7,8.219e-05,2]
[423016596,1779751841000,-500.0,8.219e-05,2]
[423016597,1779751841000,-1237.56,8.219e-05,2]
[423016601,1779751841000,-500.0,8.219e-05,2]
[423016600,1779751841000,-500.0,8.219e-05,2]
[423016603,1779751841000,-500.0,8.219e-05,2]
[423016588,1779751841000,-500.0,8.219e-05,2]
[423016626,1779751841000,-500.0,8.219e-05,2]
[423016605,1779751841000,-836.49,8.219e-05,2]
[423016629,1779751841000,-635.32643677,8.219e-05,2]
[423016655,1779751841000,-500.0,8.493e-05,2]
[423016654,1779751841000,-500.0,8.493e-05,2]
[423016656,1779751841000,-811.33,8.493e-05,2]
[423016657,1779751841000,-588.86,8.493e-05,2]
[423016658,1779751841000,-500.0,8.493e-05,2]
[423016660,1779751841000,-500.0,8.493e-05,2]
[423016659,1779751841000,-500.0,8.493e-05,2]
[423016661,1779751841000,-1115.25163563,8.493e-05,2]
[423016663,1779751841000,-866.5381688,8.493e-05,2]
[423016662,1779751841000,-28.62836437,8.493e-05,2]
[423016665,1779751841000,-500.0,8.493e-05,2]
[423016664,1779751841000,-140.3018312,8.493e-05,2]
[423016667,1779751841000,-500.0,8.493e-05,2]
[423016666,1779751841000,-825.93,8.493e-05,2]
[423016671,1779751841000,-500.0,8.493e-05,2]
[423016670,1779751841000,-841.37,8.493e-05,2]
[423016668,1779751841000,-630.93610363,8.493e-05,2]
[423016669,1779751841000,-500.0,8.493e-05,2]
[423016628,1779751841000,-500.0,8.219e-05,2]
[423016651,1779751841000,-631.08,8.493e-05,2]
[423016652,1779751841000,-500.0,8.493e-05,2]
[423016623,1779751841000,-557.72,8.219e-05,2]
[423016650,1779751841000,-500.0,8.493e-05,2]
[423016630,1779751841000,-500.0,8.219e-05,2]
[423016653,1779751841000,-500.0,8.493e-05,2]
[423016631,1779751841000,-300.75,8.219e-05,2]
[423016632,1779751841000,-619.69,8.219e-05,2]
[423016633,1779751841000,-500.0,8.219e-05,2]
[423016634,1779751841000,-1230.46,8.219e-05,2]
[423016635,1779751841000,-500.0,8.219e-05,2]
[423016636,1779751841000,-500.0,8.233e-05,2]
[423016640,1779751841000,-1413.0,8.474e-05,2]
[423016638,1779751841000,-864.0,8.458e-05,2]
[423016637,1779751841000,-4383.24760535,8.29e-05,2]
[423016641,1779751841000,-2204.0,8.474e-05,2]
[423016643,1779751841000,-185.0,8.474e-05,2]
[423016642,1779751841000,-742.0,8.474e-05,2]
[423016644,1779751841000,-454.037,8.474e-05,2]
[423016645,1779751841000,-1667.2549,8.493e-05,2]
[423016647,1779751841000,-500.0,8.493e-05,2]
[423016646,1779751841000,-500.0,8.493e-05,2]
[423016648,1779751841000,-500.0,8.493e-05,2]
[423016649,1779751841000,-500.0,8.493e-05,2]
[423016639,1779751841000,-648.0,8.474e-05,2]
[423016673,1779751842000,-500.0,8.493e-05,2]
[423016672,1779751842000,-500.0,8.493e-05,2]
[423016675,1779751842000,-500.0,8.493e-05,2]
[423016676,1779751842000,-500.0,8.493e-05,2]
[423016674,1779751842000,-601.76,8.493e-05,2]
[423016683,1779751842000,-547.33,8.493e-05,2]
[423016677,1779751842000,-500.0,8.493e-05,2]
[423016680,1779751842000,-477.62444368,8.493e-05,2]
[423016679,1779751842000,-22.37555632,8.493e-05,2]
[423016681,1779751842000,-500.0,8.493e-05,2]
[423016682,1779751842000,-739.57,8.493e-05,2]
[423016684,1779751842000,-168.61742672,8.493e-05,2]
[423016678,1779751842000,-500.0,8.493e-05,2]
[423016726,1779751854000,-701.35,8.493e-05,2]
[423016713,1779751854000,-5000.0,5.315e-05,2]
[423016725,1779751854000,-2320.33511134,8.493e-05,2]
[423016723,1779751854000,-500.0,8.493e-05,2]
[423016724,1779751854000,-546.15488866,8.493e-05,2]
[423016722,1779751854000,-4740.82,8.493e-05,2]
[423016720,1779751854000,-500.0,8.493e-05,2]
[423016719,1779751854000,-573.2,8.493e-05,2]
[423016721,1779751854000,-595.7,8.493e-05,2]
[423016717,1779751854000,-500.0,8.493e-05,2]
[423016716,1779751854000,-500.0,8.493e-05,2]
[423016714,1779751854000,-388.6324293,8.493e-05,2]
[423016715,1779751854000,-500.0,8.493e-05,2]
[423016728,1779751854000,-500.0,8.493e-05,2]
[423016718,1779751854000,-500.0,8.493e-05,2]
[423016727,1779751854000,-1195.78,8.493e-05,2]
[423016733,1779751854000,-1542.51,8.493e-05,2]
[423016734,1779751854000,-2757.3,8.493e-05,2]
[423016730,1779751854000,-1681.35,8.493e-05,2]
[423016745,1779751854000,-1498.89,8.493e-05,2]
[423016742,1779751854000,-453.51650203,8.493e-05,2]
[423016744,1779751854000,-500.0,8.493e-05,2]
[423016743,1779751854000,-2864.08,8.493e-05,2]
[423016739,1779751854000,-1226.91,8.493e-05,2]
[423016738,1779751854000,-500.0,8.493e-05,2]
[423016746,1779751854000,-500.0,8.493e-05,2]
[423016741,1779751854000,-1255.12,8.493e-05,2]
[423016740,1779751854000,-1149.9,8.493e-05,2]
[423016735,1779751854000,-1167.88,8.493e-05,2]
[423016736,1779751854000,-500.0,8.493e-05,2]
[423016732,1779751854000,-797.64,8.493e-05,2]
[423016729,1779751854000,-984.66,8.493e-05,2]
[423016737,1779751854000,-713.25,8.493e-05,2]
[423016731,1779751854000,-500.0,8.493e-05,2]
[423016801,1779751855000,-601.76,8.767e-05,2]
[423016802,1779751855000,-500.0,8.767e-05,2]
[423016799,1779751855000,-500.0,8.767e-05,2]
[423016798,1779751855000,-322.6727892,8.767e-05,2]
[423016795,1779751855000,-500.0,8.767e-05,2]
[423016796,1779751855000,-500.0,8.767e-05,2]
[423016800,1779751855000,-500.0,8.767e-05,2]
[423016793,1779751855000,-500.0,8.767e-05,2]
[423016794,1779751855000,-825.93,8.767e-05,2]
[423016791,1779751855000,-1143.88,8.767e-05,2]
[423016797,1779751855000,-841.37,8.767e-05,2]
[423016804,1779751855000,-500.0,8.767e-05,2]
[423016807,1779751855000,-500.0,8.767e-05,2]
[423016805,1779751855000,-500.0,8.767e-05,2]
[423016808,1779751855000,-739.57,8.767e-05,2]
[423016806,1779751855000,-500.0,8.767e-05,2]
[423016810,1779751855000,-500.0,8.767e-05,2]
[423016809,1779751855000,-547.33,8.767e-05,2]
[423016813,1779751855000,-500.0,8.767e-05,2]
[423016814,1779751855000,-573.2,8.767e-05,2]
[423016811,1779751855000,-500.0,8.767e-05,2]
[423016816,1779751855000,-595.7,8.767e-05,2]
[423016815,1779751855000,-500.0,8.767e-05,2]
[423016817,1779751855000,-3657.60891329,8.767e-05,2]
[423016792,1779751855000,-1006.84,8.767e-05,2]
[423016803,1779751855000,-500.0,8.767e-05,2]
[423016812,1779751855000,-500.0,8.767e-05,2]
[423016787,1779751855000,-588.86,8.767e-05,2]
[423016788,1779751855000,-500.0,8.767e-05,2]
[423016762,1779751855000,-2883.65,8.493e-05,2]
[423016760,1779751855000,-500.0,8.493e-05,2]
[423016766,1779751855000,-1119.52,8.493e-05,2]
[423016763,1779751855000,-500.0,8.493e-05,2]
[423016761,1779751855000,-500.0,8.493e-05,2]
[423016758,1779751855000,-846.75,8.493e-05,2]
[423016757,1779751855000,-4079.6,8.493e-05,2]
[423016759,1779751855000,-1816.09,8.493e-05,2]
[423016765,1779751855000,-500.0,8.493e-05,2]
[423016756,1779751855000,-931.63,8.493e-05,2]
[423016754,1779751855000,-836.49,8.493e-05,2]
[423016752,1779751855000,-2069.54646418,8.493e-05,2]
[423016751,1779751855000,-1590.45353582,8.493e-05,2]
[423016750,1779751855000,-1299.7,8.493e-05,2]
[423016753,1779751855000,-1362.58,8.493e-05,2]
[423016749,1779751855000,-1237.56,8.493e-05,2]
[423016747,1779751855000,-500.0,8.493e-05,2]
[423016784,1779751855000,-500.0,8.767e-05,2]
[423016755,1779751855000,-1016.99,8.493e-05,2]
[423016764,1779751855000,-1251.51,8.493e-05,2]
[423016748,1779751855000,-500.0,8.493e-05,2]
[423016767,1779751855000,-557.72,8.493e-05,2]
[423016790,1779751855000,-500.0,8.767e-05,2]
[423016789,1779751855000,-500.0,8.767e-05,2]
[423016786,1779751855000,-811.33,8.767e-05,2]
[423016785,1779751855000,-500.0,8.767e-05,2]
[423016783,1779751855000,-500.0,8.767e-05,2]
[423016779,1779751855000,-420.69735637,8.767e-05,2]
[423016781,1779751855000,-631.08,8.767e-05,2]
[423016780,1779751855000,-500.0,8.767e-05,2]
[423016778,1779751855000,-500.0,8.767e-05,2]
[423016782,1779751855000,-500.0,8.767e-05,2]
[423016775,1779751855000,-1175.63139131,8.767e-05,2]
[423016777,1779751855000,-500.0,8.767e-05,2]
[423016771,1779751855000,-1230.46,8.493e-05,2]
[423016770,1779751855000,-619.69,8.493e-05,2]
[423016769,1779751855000,-500.0,8.493e-05,2]
[423016768,1779751855000,-500.0,8.493e-05,2]
[423016774,1779751855000,-4863.12992498,8.655e-05,2]
[423016773,1779751855000,-210.87820908,8.532e-05,2]
[423016776,1779751855000,-491.62350869,8.767e-05,2]
[423016772,1779751855000,-500.0,8.493e-05,2]
[423016818,1779751872000,-152.49693768,6.282e-05,2]
[423016819,1779751889000,-5000.0,6.219e-05,2]
[423016820,1779751946000,-1667.2549,6.218e-05,2]
[423016821,1779751967000,-500.0,6.218e-05,2]
[423016822,1779751987000,-500.0,6.218e-05,2]
[423016823,1779752007000,-500.0,6.218e-05,2]
[423016824,1779752027000,-500.0,6.218e-05,2]
[423016825,1779752047000,-500.0,6.218e-05,2]
[423016826,1779752068000,-631.08,6.218e-05,2]
[423016827,1779752088000,-201.6651,6.218e-05,2]
[423016828,1779752141000,-500.0,6.249e-05,2]
[423016829,1779752161000,-53.53721809,6.249e-05,2]
[423016830,1779752315000,-300.0,6.278e-05,2]
[423016831,1779752368000,-500.0,6.278e-05,2]
[423016833,1779752388000,-500.0,6.278e-05,2]
[423016834,1779752409000,-42.19791046,6.278e-05,2]
[423016836,1779752462000,-500.0,6.277e-05,2]
[423016837,1779752482000,-531.77593136,6.277e-05,2]
[423016838,1779752535000,-811.33,6.277e-05,2]
[423016839,1779752556000,-220.44593136,6.277e-05,2]
[423016840,1779752608000,-588.86,6.276e-05,2]
[423016841,1779752609000,990.75,0.00017808,120]
[423016842,1779752629000,-500.0,6.279e-05,2]
[423016843,1779752849000,-500.0,6.279e-05,2]
[423016844,1779752869000,-32.46647373,6.279e-05,2]
[423016847,1779752923000,-500.0,6.279e-05,2]
[423016849,1779752943000,-49.802,6.279e-05,2]
[423016850,1779752996000,-1115.25163563,6.406e-05,2]
[423016851,1779753016000,-414.0,6.406e-05,2]
[423017623,1779753038000,-300.0,6.407e-05,2]
[423017601,1779753038000,-564.0,6.406e-05,2]
[423017603,1779753038000,-189.0,6.407e-05,2]
[423017605,1779753038000,-300.0,6.407e-05,2]
[423017607,1779753038000,-300.0,6.407e-05,2]
[423017609,1779753038000,-300.0,6.407e-05,2]
[423017611,1779753038000,-300.0,6.407e-05,2]
[423017617,1779753038000,-300.0,6.407e-05,2]
[423017615,1779753038000,-300.0,6.407e-05,2]
[423017625,1779753038000,-300.0,6.407e-05,2]
[423017632,1779753038000,-300.0,6.407e-05,2]
[423017613,1779753038000,-300.0,6.407e-05,2]
[423017640,1779753038000,-160.0,7.897e-05,2]
[423017631,1779753038000,-300.0,6.407e-05,2]
[423017634,1779753038000,-2793.84894433,7.331e-05,2]
[423017636,1779753038000,-588.4991477,7.817e-05,2]
[423017621,1779753038000,-300.0,6.407e-05,2]
[423017629,1779753038000,-300.0,6.407e-05,2]
[423017627,1779753038000,-300.0,6.407e-05,2]
[423017619,1779753038000,-300.0,6.407e-05,2]
[423017638,1779753038000,-160.0,7.897e-05,2]
[423017642,1779753039000,-1005.25181273,8.018e-05,2]
[423017643,1779753039000,-1005.25181273,8.018e-05,2]
[423017645,1779753039000,-1005.25181273,8.018e-05,2]
[423017647,1779753039000,-1005.25181273,8.018e-05,2]
[423017649,1779753039000,-1005.25181273,8.018e-05,2]
[423017653,1779753039000,-1005.25181273,8.018e-05,2]
[423017651,1779753039000,-1005.25181273,8.018e-05,2]
[423017655,1779753039000,-1005.25181273,8.018e-05,2]
[423017657,1779753039000,-1005.25181273,8.018e-05,2]
[423017659,1779753039000,-1005.25181273,8.018e-05,2]
[423017663,1779753039000,-1005.25181273,8.018e-05,2]
[423017675,1779753039000,-425.00016113,8.119e-05,2]
[423017667,1779753039000,-1005.25181273,8.018e-05,2]
[423017669,1779753039000,-1005.25181273,8.018e-05,2]
[423017670,1779753039000,-1005.25181273,8.018e-05,2]
[423017671,1779753039000,-10518.72629265,8.019e-05,2]
[423017673,1779753039000,-135688.13466328,8.119e-05,2]
[423017678,1779753039000,-1348333.04642305,8.119e-05,2]
[423017682,1779753039000,-36187.73360179,8.119e-05,2]
[423017661,1779753039000,-1005.25181273,8.018e-05,2]
[423017665,1779753039000,-1005.25181273,8.018e-05,2]
[423017864,1779753044000,-3422.40111646,8.119e-05,2]
[423017884,1779753047000,-2849.88031617,8.119e-05,2]
[423017892,1779753901000,973.3,0.00017808,120]
[423017893,1779753930000,730.7,0.00017808,120]
[423017894,1779753954000,486.9,0.00017808,120]
[423017950,1779754234000,-2665.85544935,6.836e-05,2]
[423017949,1779754234000,-637.92171028,6.836e-05,2]
[423017961,1779754238000,-4466.2619092,7.627e-05,2]
[423017958,1779754238000,-521.81714425,6.976e-05,2]
[423017960,1779754238000,-454.75934406,7.451e-05,2]
[423017962,1779754238000,-248300.89444166,7.816e-05,2]
[423017959,1779754238000,-3570.96776063,7.047e-05,2]
[423017957,1779754238000,-1696.22284037,6.836e-05,2]
[423017963,1779754238000,-902.34202786,7.816e-05,2]
[423018052,1779754243000,-15218.1178605,7.816e-05,2]
[423018200,1779754246000,-21957.54655709,7.816e-05,2]
[423018202,1779754246000,-3953.85,7.816e-05,2]
[423018282,1779755432000,-2164.56955448,7.206e-05,2]
[423018363,1779755438000,-2835.43044552,7.206e-05,2]
[423018364,1779755438000,-517.19180059,7.317e-05,2]
[423018409,1779755446000,-3471.77564296,7.616e-05,2]
[423018408,1779755446000,-2574.68475776,7.616e-05,2]
[423018410,1779755446000,-42775.61400887,7.616e-05,2]
[423018412,1779755446000,-31321.84848189,7.616e-05,2]
[423018411,1779755446000,-4987.0,7.616e-05,2]
[423018434,1779755492000,-2572.01538332,7.133e-05,2]
[423018435,1779755504000,1465.13169701,0.000178,120]
[423018436,1779755823000,175.0,0.00015,30]
[423018450,1779756292000,-648.0,6.903e-05,2]
[423018456,1779756313000,-1413.0,6.903e-05,2]
[423018457,1779756333000,-2204.0,6.903e-05,2]
[423018526,1779756635000,-500.0,6.937e-05,2]
[423018525,1779756635000,-310.79520762,6.937e-05,2]
[423018528,1779756635000,-519.26258331,6.938e-05,2]
[423018522,1779756635000,-4705.31329958,6.903e-05,2]
[423018524,1779756635000,-500.0,6.937e-05,2]
[423018527,1779756635000,-500.0,6.937e-05,2]
[423018523,1779756635000,-500.0,6.937e-05,2]
[423018529,1779756635000,-369.06647615,7.141e-05,2]
[423018539,1779756635000,-896.28962753,7.213e-05,2]
[423018531,1779756635000,-896.28962753,7.213e-05,2]
[423018538,1779756635000,-896.28962753,7.213e-05,2]
[423018537,1779756635000,-896.28962753,7.213e-05,2]
[423018534,1779756635000,-896.28962753,7.213e-05,2]
[423018536,1779756635000,-896.28962753,7.213e-05,2]
[423018533,1779756635000,-896.28962753,7.213e-05,2]
[423018530,1779756635000,-493.922,7.17e-05,2]
[423018532,1779756635000,-896.28962753,7.213e-05,2]
[423018535,1779756635000,-896.28962753,7.213e-05,2]
[423018548,1779756636000,-300.0,7.216e-05,2]
[423018546,1779756636000,-896.28962753,7.213e-05,2]
[423018547,1779756636000,-15761.00639286,7.216e-05,2]
[423018544,1779756636000,-896.28962753,7.213e-05,2]
[423018545,1779756636000,-896.28962753,7.213e-05,2]
[423018543,1779756636000,-896.28962753,7.213e-05,2]
[423018542,1779756636000,-896.28962753,7.213e-05,2]
[423018540,1779756636000,-896.28962753,7.213e-05,2]
[423018541,1779756636000,-896.28962753,7.213e-05,2]
[423018569,1779756638000,-2038.77981904,7.216e-05,2]
[423018567,1779756638000,-2798.19226222,7.216e-05,2]
[423018570,1779756638000,-1623.49233436,7.216e-05,2]
[423018572,1779756638000,-31638.52865169,7.216e-05,2]
[423018571,1779756638000,-2188.26615913,7.216e-05,2]
[423018568,1779756638000,-1671.19665528,7.216e-05,2]
[423018573,1779756638000,-25585.27673515,7.216e-05,2]
[423018583,1779756640000,-744.24204284,7.216e-05,2]
[423018584,1779756640000,-1000.0,7.216e-05,2]
[423018589,1779756644000,-1578.02079116,7.216e-05,2]
[423018590,1779756644000,-841.45616995,7.216e-05,2]
[423018588,1779756644000,-2775.00000131,7.216e-05,2]
[423018587,1779756644000,-8349.93678142,7.216e-05,2]
[423018605,1779756647000,-223181.19590644,7.216e-05,2]
[423018604,1779756647000,-24524.48,7.1e-05,2]
[423018603,1779756647000,-308.52,7.1e-05,2]
[423018610,1779757007000,-500.0,6.171e-05,2]
[423018612,1779757061000,-742.0,6.351e-05,2]
[423018616,1779757253000,-320.36228264,6.351e-05,2]
[423018677,1779757832000,-2997.80781472,6.816e-05,2]
[423018665,1779757832000,-3847.14911943,5.401e-05,2]
[423018668,1779757832000,-291.48354254,5.456e-05,2]
[423018666,1779757832000,-396.03982696,5.401e-05,2]
[423018670,1779757832000,-383.46,5.682e-05,2]
[423018669,1779757832000,-15.35031669,5.682e-05,2]
[423018676,1779757832000,-259.01530711,6.512e-05,2]
[423018675,1779757832000,-395.138,6.415e-05,2]
[423018667,1779757832000,-756.81105361,5.401e-05,2]
[423018671,1779757832000,-129.42889608,5.682e-05,2]
[423018672,1779757832000,-165.04026756,5.983e-05,2]
[423018673,1779757832000,-34.95973244,5.983e-05,2]
[423018674,1779757832000,-164.4689194,6.415e-05,2]
[423018686,1779757838000,-19547.04887205,6.816e-05,2]
[423018687,1779757838000,-558285.37566295,6.816e-05,2]
[423018689,1779757838000,-360.5428193,6.816e-05,2]
[423018688,1779757838000,-1409.59627925,6.816e-05,2]
[423018690,1779757838000,-4086.83690465,6.816e-05,2]
[423018691,1779757838000,-649.63437288,6.816e-05,2]
[423018692,1779757838000,-284.49714743,6.816e-05,2]
[423018702,1779757841000,-1472.41573272,6.816e-05,2]
[423018745,1779757844000,-42000.0,6.816e-05,2]
[423018743,1779757844000,-622.06039237,6.816e-05,2]
[423018744,1779757844000,-2964.69468935,6.816e-05,2]
[423018741,1779757844000,-1018.69633129,6.816e-05,2]
[423018742,1779757844000,-2386.89478354,6.816e-05,2]
[423018855,1779757847000,-10322.45194937,6.816e-05,2]
[423018866,1779758018000,-300.0,5.454e-05,2]
[423018869,1779758071000,-300.0,6.679e-05,2]
[423018870,1779758106000,859.82,0.00017808,120]
[423018871,1779758125000,-300.0,6.678e-05,2]
[423018872,1779758178000,-300.0,6.678e-05,2]
[423018873,1779758231000,-456.5775622,6.159e-05,2]
[423018874,1779758285000,-525.9015307,6.512e-05,2]
[423018875,1779758338000,-300.0,6.678e-05,2]
[423018876,1779758391000,-500.0,5.789e-05,2]
[423018877,1779758412000,-61.056045,5.789e-05,2]
[423018878,1779758454000,4090.17720911,0.00015,60]
[423018879,1779758465000,-545.79476517,6.68e-05,2]
[423018886,1779758840000,-595.7,6.436e-05,2]
[423018887,1779758861000,-2115.08395164,6.436e-05,2]
[423018888,1779758914000,-5000.0,6.501e-05,2]
[423018891,1779758968000,-300.0,6.597e-05,2]
[423018897,1779759021000,-300.0,6.597e-05,2]
[423018923,1779759032000,-73.08421375,6.597e-05,2]
[423018922,1779759032000,-132.91578625,6.597e-05,2]
[423018921,1779759032000,-300.0,6.597e-05,2]
[423018926,1779759033000,-425.98639827,6.597e-05,2]
[423018924,1779759033000,-300.0,6.597e-05,2]
[423018925,1779759033000,-264.27397604,6.597e-05,2]
[423018959,1779759039000,-825.05770565,6.613e-05,2]
[423018958,1779759039000,-825.05770565,6.613e-05,2]
[423018960,1779759039000,-825.05770565,6.613e-05,2]
[423018963,1779759039000,-825.05770565,6.613e-05,2]
[423018957,1779759039000,-825.05770565,6.613e-05,2]
[423018956,1779759039000,-825.05770565,6.613e-05,2]
[423018964,1779759039000,-825.05770565,6.613e-05,2]
[423018966,1779759039000,-825.05770565,6.613e-05,2]
[423018965,1779759039000,-825.05770565,6.613e-05,2]
[423018973,1779759039000,-117591.34599418,6.773e-05,2]
[423018974,1779759039000,-651.0,6.816e-05,2]
[423018977,1779759039000,-651.0,6.816e-05,2]
[423018969,1779759039000,-3540.8352751,6.615e-05,2]
[423018971,1779759039000,-214.32518591,6.631e-05,2]
[423018975,1779759039000,-651.0,6.816e-05,2]
[423018972,1779759039000,-6848.0,6.7e-05,2]
[423018968,1779759039000,-825.05770565,6.613e-05,2]
[423018954,1779759039000,-825.05770565,6.613e-05,2]
[423018988,1779759039000,-180.0,6.816e-05,2]
[423018987,1779759039000,-651.0,6.816e-05,2]
[423018978,1779759039000,-651.0,6.816e-05,2]
[423018976,1779759039000,-651.0,6.816e-05,2]
[423018980,1779759039000,-166.0,6.816e-05,2]
[423018967,1779759039000,-825.05770565,6.613e-05,2]
[423018955,1779759039000,-825.05770565,6.613e-05,2]
[423018947,1779759039000,-500.0,6.597e-05,2]
[423018962,1779759039000,-825.05770565,6.613e-05,2]
[423018979,1779759039000,-651.0,6.816e-05,2]
[423018939,1779759039000,-156.06056412,6.597e-05,2]
[423018930,1779759039000,-509.73962569,6.597e-05,2]
[423018934,1779759039000,-500.0,6.597e-05,2]
[423018931,1779759039000,-500.0,6.597e-05,2]
[423018936,1779759039000,-500.0,6.597e-05,2]
[423018937,1779759039000,-500.0,6.597e-05,2]
[423018935,1779759039000,-500.0,6.597e-05,2]
[423018933,1779759039000,-500.0,6.597e-05,2]
[423018932,1779759039000,-500.0,6.597e-05,2]
[423018938,1779759039000,-353.50657483,6.597e-05,2]
[423018953,1779759039000,-825.05770565,6.613e-05,2]
[423018941,1779759039000,-534.8687519,6.597e-05,2]
[423018950,1779759039000,-500.0,6.597e-05,2]
[423018949,1779759039000,-500.0,6.597e-05,2]
[423018940,1779759039000,-500.0,6.597e-05,2]
[423018946,1779759039000,-225.81925735,6.597e-05,2]
[423018944,1779759039000,-500.0,6.597e-05,2]
[423018948,1779759039000,-500.0,6.597e-05,2]
[423018943,1779759039000,-500.0,6.597e-05,2]
[423018945,1779759039000,-500.0,6.597e-05,2]
[423018952,1779759039000,-534.87886986,6.599e-05,2]
[423018951,1779759039000,-500.0,6.597e-05,2]
[423018961,1779759039000,-825.05770565,6.613e-05,2]
[423018942,1779759039000,-500.0,6.597e-05,2]
[423018982,1779759039000,-651.0,6.816e-05,2]
[423018970,1779759039000,-564192.89176136,6.616e-05,2]
[423018986,1779759039000,-180.0,6.816e-05,2]
[423019009,1779759039000,-413.5812819,6.938e-05,2]
[423019016,1779759039000,-20261.13791659,7.289e-05,2]
[423019014,1779759039000,-155.0,7.257e-05,2]
[423019026,1779759039000,-1153819.60650817,7.9e-05,2]
[423019015,1779759039000,-1680.0,7.257e-05,2]
[423019020,1779759039000,-720.0,7.644e-05,2]
[423019024,1779759039000,-160.0,7.872e-05,2]
[423019023,1779759039000,-151.0,7.798e-05,2]
[423019025,1779759039000,-160.0,7.872e-05,2]
[423019019,1779759039000,-214.32518587,7.639e-05,2]
[423019022,1779759039000,-245.0860509,7.786e-05,2]
[423019006,1779759039000,-6162.930374,6.91e-05,2]
[423019021,1779759039000,-151.0,7.778e-05,2]
[423019018,1779759039000,-500.0,7.596e-05,2]
[423019029,1779759039000,-500.0,7.98e-05,2]
[423019035,1779759039000,-371.76224448,8.105e-05,2]
[423019031,1779759039000,-371.76224451,8e-05,2]
[423019033,1779759039000,-2204.0,8.006e-05,2]
[423019027,1779759039000,-214.32518587,7.975e-05,2]
[423019034,1779759039000,-1413.0,8.006e-05,2]
[423019036,1779759039000,-1607.7838,8.219e-05,2]
[423019032,1779759039000,-648.0,8.006e-05,2]
[423019028,1779759039000,-500.0,7.975e-05,2]
[423018981,1779759039000,-166.0,6.816e-05,2]
[423019017,1779759039000,-214.32518587,7.303e-05,2]
[423019008,1779759039000,-161.3083238,6.916e-05,2]
[423019037,1779759039000,-500.0,8.219e-05,2]
[423019004,1779759039000,-950.65489806,6.873e-05,2]
[423019010,1779759039000,-600.0,6.949e-05,2]
[423018983,1779759039000,-651.0,6.816e-05,2]
[423018984,1779759039000,-651.0,6.816e-05,2]
[423018990,1779759039000,-180.68035774,6.816e-05,2]
[423018999,1779759039000,-651.0,6.816e-05,2]
[423019001,1779759039000,-651.0,6.816e-05,2]
[423018991,1779759039000,-651.0,6.816e-05,2]
[423019000,1779759039000,-651.0,6.816e-05,2]
[423018989,1779759039000,-651.0,6.816e-05,2]
[423018992,1779759039000,-651.0,6.816e-05,2]
[423018994,1779759039000,-651.0,6.816e-05,2]
[423018995,1779759039000,-167.04656377,6.816e-05,2]
[423018985,1779759039000,-651.0,6.816e-05,2]
[423018997,1779759039000,-651.0,6.816e-05,2]
[423019030,1779759039000,-1626.0,7.982e-05,2]
[423019005,1779759039000,-3798.81697265,6.873e-05,2]
[423019003,1779759039000,-500.0,6.855e-05,2]
[423019002,1779759039000,-651.0,6.816e-05,2]
[423019012,1779759039000,-2003.6483671,7e-05,2]
[423019011,1779759039000,-214.32518587,6.967e-05,2]
[423018998,1779759039000,-651.0,6.816e-05,2]
[423018996,1779759039000,-651.0,6.816e-05,2]
[423018993,1779759039000,-651.0,6.816e-05,2]
[423019013,1779759039000,-500.0,7.216e-05,2]
[423019007,1779759039000,-20532.6201058,6.916e-05,2]
[423019061,1779759040000,-500.0,8.219e-05,2]
[423019062,1779759040000,-500.0,8.219e-05,2]
[423019069,1779759040000,-508.6607938,8.219e-05,2]
[423019063,1779759040000,-500.0,8.219e-05,2]
[423019064,1779759040000,-500.0,8.219e-05,2]
[423019065,1779759040000,-461.60114167,8.219e-05,2]
[423019067,1779759040000,-500.0,8.219e-05,2]
[423019066,1779759040000,-500.29953554,8.219e-05,2]
[423019068,1779759040000,-500.0,8.219e-05,2]
[423019088,1779759040000,-500.0,8.219e-05,2]
[423019076,1779759040000,-500.0,8.219e-05,2]
[423019089,1779759040000,-500.0,8.219e-05,2]
[423019079,1779759040000,-500.0,8.219e-05,2]
[423019078,1779759040000,-500.0,8.219e-05,2]
[423019090,1779759040000,-500.0,8.219e-05,2]
[423019080,1779759040000,-500.0,8.219e-05,2]
[423019084,1779759040000,-500.0,8.219e-05,2]
[423019060,1779759040000,-500.0,8.219e-05,2]